[Event "Titled Tuesday Blitz November 07 Late 2023"]
[White "Silvestre, Christian"]
[Black "Cremisi, Daniel"]
[WhiteFideId "30956269"]
[BlackFideId "2089882"]
[WhiteElo "2203"]
[BlackElo "2575"]
[Result "0-1"]
[Round "1"]
[TimeControl "180+1"]
[Date "2023.11.07"]
[WhiteClock "0:00:05"]
[BlackClock "0:00:11"]
[Board "146"]

1. e4 {[%clk 0:02:58]}  e6 {[%clk 0:02:59]} 2. Qe2 {[%clk 0:02:56]}  Nc6 {[%clk 0:02:58]} 3. Nf3 {[%clk 0:02:54]}  g6 {[%clk 0:02:57]} 4. d4 {[%clk 0:02:53]}  Bg7 {[%clk 0:02:57]} 5. Be3 {[%clk 0:02:49]}  Nge7 {[%clk 0:02:57]} 6. c3 {[%clk 0:02:49]}  O-O {[%clk 0:02:57]} 7. g3 {[%clk 0:02:46]}  f5 {[%clk 0:02:56]} 8. Nbd2 {[%clk 0:02:42]}  fxe4 {[%clk 0:02:55]} 9. Nxe4 {[%clk 0:02:43]}  d5 {[%clk 0:02:36]} 10. Ned2 {[%clk 0:02:20]}  e5 {[%clk 0:02:35]} 11. dxe5 {[%clk 0:02:19]}  Nxe5 {[%clk 0:02:19]} 12. Nxe5 {[%clk 0:02:18]}  Bxe5 {[%clk 0:02:20]} 13. Bh6 {[%clk 0:02:12]}  Bg7 {[%clk 0:02:19]} 14. Bxg7 {[%clk 0:02:12]}  Kxg7 {[%clk 0:02:20]} 15. O-O-O {[%clk 0:02:10]}  Nc6 {[%clk 0:02:19]} 16. Nb3 {[%clk 0:02:04]}  Qf6 {[%clk 0:02:15]} 17. f4 {[%clk 0:02:01]}  Bf5 {[%clk 0:01:51]} 18. Bg2 {[%clk 0:02:00]}  Rae8 {[%clk 0:01:49]} 19. Qf2 {[%clk 0:01:57]}  Be4 {[%clk 0:01:37]} 20. Rhe1 {[%clk 0:01:46]}  Bxg2 {[%clk 0:01:36]} 21. Qxg2 {[%clk 0:01:45]}  Rxe1 {[%clk 0:01:36]} 22. Rxe1 {[%clk 0:01:45]}  d4 {[%clk 0:01:36]} 23. cxd4 {[%clk 0:01:33]}  Nxd4 {[%clk 0:01:34]} 24. Qxb7 {[%clk 0:01:24]}  Nxb3+ {[%clk 0:01:17]} 25. Qxb3 {[%clk 0:01:21]}  Kh6 {[%clk 0:01:13]} 26. Qc3 {[%clk 0:01:21]}  Qa6 {[%clk 0:01:11]} 27. Re7 {[%clk 0:01:09]}  Rf6 {[%clk 0:01:11]} 28. Qe3 {[%clk 0:00:49]}  Rc6+ {[%clk 0:00:53]} 29. Kb1 {[%clk 0:00:48]}  Qf1+ {[%clk 0:00:46]} 30. Qe1 {[%clk 0:00:48]}  Qd3+ {[%clk 0:00:45]} 31. Ka1 {[%clk 0:00:47]}  Qc2 {[%clk 0:00:28]} 32. a3 {[%clk 0:00:40]}  Rb6 {[%clk 0:00:27]} 33. Qb1 {[%clk 0:00:39]}  Qxh2 {[%clk 0:00:19]} 34. Rxc7 {[%clk 0:00:31]}  a5 {[%clk 0:00:16]} 35. Rc3 {[%clk 0:00:29]}  Re6 {[%clk 0:00:15]} 36. Ka2 {[%clk 0:00:26]}  Qg2 {[%clk 0:00:13]} 37. Qd3 {[%clk 0:00:26]}  Re2 {[%clk 0:00:12]} 38. Rb3 {[%clk 0:00:25]}  Re1 {[%clk 0:00:12]} 39. Qb5 {[%clk 0:00:20]}  Qh1 {[%clk 0:00:12]} 40. Qg5+ {[%clk 0:00:20]}  Kg7 {[%clk 0:00:11]} 41. Rb7+ {[%clk 0:00:20]}  Qxb7 {[%clk 0:00:11]} 42. Qc5 {[%clk 0:00:05]}  Qf7+ {[%clk 0:00:11]} 0-1


[Site "https://www.chess.com"]

[Event "Titled Tuesday Blitz November 07 Late 2023"]
[White "The_Straightforward_Rook"]
[Black "Chemin, Justo Reinaldo"]
[BlackFideId "2101580"]
[WhiteElo "2574"]
[BlackElo "2195"]
[Result "1-0"]
[Round "1"]
[TimeControl "180+1"]
[Date "2023.11.07"]
[WhiteClock "0:00:18"]
[BlackClock "0:00:00"]
[Board "147"]

1. e4 {[%clk 0:02:55]}  e6 {[%clk 0:02:59]} 2. d4 {[%clk 0:02:54]}  d5 {[%clk 0:03:00]} 3. e5 {[%clk 0:02:55]}  c5 {[%clk 0:02:59]} 4. c3 {[%clk 0:02:55]}  Nc6 {[%clk 0:02:59]} 5. Nf3 {[%clk 0:02:56]}  Qb6 {[%clk 0:02:57]} 6. Be2 {[%clk 0:02:56]}  Bd7 {[%clk 0:02:57]} 7. O-O {[%clk 0:02:55]}  a5 {[%clk 0:02:53]} 8. Na3 {[%clk 0:02:54]}  cxd4 {[%clk 0:02:51]} 9. cxd4 {[%clk 0:02:51]}  Bxa3 {[%clk 0:02:49]} 10. bxa3 {[%clk 0:02:52]}  Nge7 {[%clk 0:02:47]} 11. Be3 {[%clk 0:02:45]}  a4 {[%clk 0:02:35]} 12. Rb1 {[%clk 0:02:44]}  Qc7 {[%clk 0:02:32]} 13. Bd3 {[%clk 0:02:41]}  h6 {[%clk 0:02:28]} 14. Qe2 {[%clk 0:02:30]}  Nf5 {[%clk 0:02:22]} 15. Bxf5 {[%clk 0:02:25]}  exf5 {[%clk 0:02:21]} 16. Rfc1 {[%clk 0:02:26]}  O-O {[%clk 0:02:18]} 17. Ne1 {[%clk 0:02:26]}  Rfc8 {[%clk 0:02:12]} 18. Nd3 {[%clk 0:02:26]}  Be6 {[%clk 0:02:08]} 19. Rc3 {[%clk 0:02:18]}  Qd8 {[%clk 0:02:02]} 20. Rxb7 {[%clk 0:02:11]}  Na5 {[%clk 0:02:01]} 21. Rxc8 {[%clk 0:02:08]}  Qxc8 {[%clk 0:01:57]} 22. Rb1 {[%clk 0:02:03]}  Nc4 {[%clk 0:01:57]} 23. Bc1 {[%clk 0:01:57]}  Rb8 {[%clk 0:01:50]} 24. Rb4 {[%clk 0:01:55]}  Rxb4 {[%clk 0:01:44]} 25. axb4 {[%clk 0:01:54]}  a3 {[%clk 0:01:35]} 26. h3 {[%clk 0:01:48]}  Qb7 {[%clk 0:01:33]} 27. Qc2 {[%clk 0:01:46]}  Qa7 {[%clk 0:01:29]} 28. Qc3 {[%clk 0:01:45]}  Qa4 {[%clk 0:01:27]} 29. Kh2 {[%clk 0:01:35]}  g5 {[%clk 0:01:24]} 30. Nc5 {[%clk 0:01:28]}  Qd1 {[%clk 0:01:17]} 31. Bxa3 {[%clk 0:01:28]}  Qe2 {[%clk 0:00:59]} 32. Nd3 {[%clk 0:00:58]}  Qxa2 {[%clk 0:00:50]} 33. Bc1 {[%clk 0:00:57]}  Qb1 {[%clk 0:00:42]} 34. Be3 {[%clk 0:00:53]}  f4 {[%clk 0:00:42]} 35. Bc1 {[%clk 0:00:50]}  Bf5 {[%clk 0:00:42]} 36. Nc5 {[%clk 0:00:44]}  Bc2 {[%clk 0:00:35]} 37. Bd2 {[%clk 0:00:42]}  Qd1 {[%clk 0:00:34]} 38. Be1 {[%clk 0:00:39]}  f3 {[%clk 0:00:26]} 39. gxf3 {[%clk 0:00:33]}  Qe2 {[%clk 0:00:20]} 40. Kg2 {[%clk 0:00:31]}  Bd3 {[%clk 0:00:19]} 41. Nxd3 {[%clk 0:00:30]}  h5 {[%clk 0:00:11]} 42. b5 {[%clk 0:00:29]}  g4 {[%clk 0:00:11]} 43. hxg4 {[%clk 0:00:25]}  hxg4 {[%clk 0:00:11]} 44. Nf4 {[%clk 0:00:24]}  gxf3+ {[%clk 0:00:07]} 45. Qxf3 {[%clk 0:00:20]}  Qxe1 {[%clk 0:00:07]} 46. Nxd5 {[%clk 0:00:21]}  Nd2 {[%clk 0:00:06]} 47. Qg3+ {[%clk 0:00:17]}  Kf8 {[%clk 0:00:06]} 48. Nf6 {[%clk 0:00:18]}  Qf1+ {[%clk 0:00:00]} 49. Kh2 {[%clk 0:00:18]} 1-0


[Site "https://www.chess.com"]

[Event "Titled Tuesday Blitz November 07 Late 2023"]
[White "Streltsov, Alexey"]
[Black "Vila Dupla, Aurelio"]
[WhiteFideId "24104434"]
[BlackFideId "2203383"]
[WhiteElo "2565"]
[BlackElo "2171"]
[Result "1-0"]
[Round "1"]
[TimeControl "180+1"]
[Date "2023.11.07"]
[WhiteClock "0:01:23"]
[BlackClock "0:00:07"]
[Board "149"]

1. d4 {[%clk 0:02:53]}  Nf6 {[%clk 0:02:58]} 2. Nc3 {[%clk 0:02:43]}  d5 {[%clk 0:02:57]} 3. Bf4 {[%clk 0:02:40]}  g6 {[%clk 0:02:57]} 4. Qd2 {[%clk 0:02:40]}  Bg7 {[%clk 0:02:56]} 5. O-O-O {[%clk 0:02:40]}  O-O {[%clk 0:02:56]} 6. Bh6 {[%clk 0:02:41]}  c5 {[%clk 0:02:55]} 7. Bxg7 {[%clk 0:02:40]}  Kxg7 {[%clk 0:02:55]} 8. dxc5 {[%clk 0:02:41]}  Qa5 {[%clk 0:02:54]} 9. Kb1 {[%clk 0:02:34]}  Qxc5 {[%clk 0:02:53]} 10. h4 {[%clk 0:02:34]}  h5 {[%clk 0:02:48]} 11. e3 {[%clk 0:02:33]}  Bf5 {[%clk 0:02:39]} 12. Nf3 {[%clk 0:02:33]}  Nc6 {[%clk 0:02:31]} 13. Nd4 {[%clk 0:02:32]}  Nxd4 {[%clk 0:02:20]} 14. exd4 {[%clk 0:02:33]}  Qa5 {[%clk 0:02:14]} 15. Bd3 {[%clk 0:02:30]}  Bxd3 {[%clk 0:02:07]} 16. Qxd3 {[%clk 0:02:30]}  Rac8 {[%clk 0:02:06]} 17. f3 {[%clk 0:02:26]}  Rc7 {[%clk 0:01:36]} 18. Ne2 {[%clk 0:02:26]}  Rfc8 {[%clk 0:01:31]} 19. c3 {[%clk 0:02:27]}  b5 {[%clk 0:01:30]} 20. a3 {[%clk 0:02:27]}  Qa4 {[%clk 0:01:27]} 21. Nf4 {[%clk 0:02:27]}  a5 {[%clk 0:01:25]} 22. g4 {[%clk 0:02:26]}  b4 {[%clk 0:01:25]} 23. cxb4 {[%clk 0:02:22]}  axb4 {[%clk 0:01:25]} 24. g5 {[%clk 0:02:23]}  Rc3 {[%clk 0:00:59]} 25. gxf6+ {[%clk 0:02:20]}  exf6 {[%clk 0:01:00]} 26. Nxh5+ {[%clk 0:02:08]}  gxh5 {[%clk 0:00:41]} 27. Rhg1+ {[%clk 0:02:04]}  Kf8 {[%clk 0:00:40]} 28. Qh7 {[%clk 0:01:47]}  Qc2+ {[%clk 0:00:36]} 29. Qxc2 {[%clk 0:01:48]}  Rxc2 {[%clk 0:00:37]} 30. Rc1 {[%clk 0:01:47]}  Rxc1+ {[%clk 0:00:33]} 31. Rxc1 {[%clk 0:01:48]}  Rb8 {[%clk 0:00:30]} 32. Ka2 {[%clk 0:01:39]}  bxa3 {[%clk 0:00:29]} 33. bxa3 {[%clk 0:01:40]}  Ke7 {[%clk 0:00:29]} 34. Rc5 {[%clk 0:01:39]}  Ke6 {[%clk 0:00:28]} 35. Rc6+ {[%clk 0:01:36]}  Kf5 {[%clk 0:00:27]} 36. Rd6 {[%clk 0:01:37]}  Kf4 {[%clk 0:00:25]} 37. Rxd5 {[%clk 0:01:36]}  Kxf3 {[%clk 0:00:25]} 38. Rxh5 {[%clk 0:01:35]}  Ke4 {[%clk 0:00:26]} 39. d5 {[%clk 0:01:35]}  f5 {[%clk 0:00:26]} 40. Rh7 {[%clk 0:01:31]}  Rb7 {[%clk 0:00:24]} 41. d6 {[%clk 0:01:30]}  f4 {[%clk 0:00:24]} 42. Rh6 {[%clk 0:01:25]}  f3 {[%clk 0:00:23]} 43. Rf6 {[%clk 0:01:24]}  Ke3 {[%clk 0:00:21]} 44. h5 {[%clk 0:01:23]}  Ke2 {[%clk 0:00:21]} 45. h6 {[%clk 0:01:24]}  Rd7 {[%clk 0:00:07]} 46. h7 {[%clk 0:01:23]} 1-0


[Site "https://www.chess.com"]

[Event "Titled Tuesday Blitz November 07 Late 2023"]
[White "Novikova, Margarita"]
[Black "Chylewski, Patryk"]
[WhiteFideId "14109689"]
[BlackFideId "1186191"]
[WhiteElo "2168"]
[BlackElo "2564"]
[Result "0-1"]
[Round "1"]
[TimeControl "180+1"]
[Date "2023.11.07"]
[WhiteClock "0:00:02"]
[BlackClock "0:00:09"]
[Board "150"]

1. e4 {[%clk 0:02:57]}  c5 {[%clk 0:02:59]} 2. Nc3 {[%clk 0:02:56]}  g6 {[%clk 0:02:50]} 3. d3 {[%clk 0:02:55]}  Bg7 {[%clk 0:02:50]} 4. Be3 {[%clk 0:02:55]}  d6 {[%clk 0:02:49]} 5. Qd2 {[%clk 0:02:55]}  Nc6 {[%clk 0:02:44]} 6. h4 {[%clk 0:02:54]}  h6 {[%clk 0:02:42]} 7. g3 {[%clk 0:02:53]}  Rb8 {[%clk 0:02:39]} 8. Bg2 {[%clk 0:02:51]}  b5 {[%clk 0:02:39]} 9. Nd1 {[%clk 0:02:48]}  b4 {[%clk 0:02:36]} 10. Ne2 {[%clk 0:02:48]}  Nf6 {[%clk 0:02:34]} 11. f3 {[%clk 0:02:44]}  a5 {[%clk 0:02:16]} 12. Nf2 {[%clk 0:02:43]}  a4 {[%clk 0:02:16]} 13. c3 {[%clk 0:02:38]}  a3 {[%clk 0:02:14]} 14. bxa3 {[%clk 0:02:36]}  bxa3 {[%clk 0:02:11]} 15. Nd1 {[%clk 0:02:27]}  Ba6 {[%clk 0:02:07]} 16. O-O {[%clk 0:02:21]}  Ne5 {[%clk 0:02:06]} 17. Nc1 {[%clk 0:02:20]}  Nfd7 {[%clk 0:01:47]} 18. Kh1 {[%clk 0:01:55]}  h5 {[%clk 0:01:47]} 19. f4 {[%clk 0:01:53]}  Ng4 {[%clk 0:01:47]} 20. Bg1 {[%clk 0:01:48]}  O-O {[%clk 0:01:47]} 21. Nf2 {[%clk 0:01:46]}  Rb2 {[%clk 0:01:44]} 22. Qd1 {[%clk 0:01:40]}  Nxf2+ {[%clk 0:01:41]} 23. Rxf2 {[%clk 0:01:36]}  Bxc3 {[%clk 0:01:41]} 24. Ne2 {[%clk 0:01:09]}  Bg7 {[%clk 0:01:16]} 25. Rc1 {[%clk 0:00:41]}  Qa5 {[%clk 0:00:52]} 26. f5 {[%clk 0:00:24]}  Ne5 {[%clk 0:00:47]} 27. fxg6 {[%clk 0:00:20]}  fxg6 {[%clk 0:00:48]} 28. Rxf8+ {[%clk 0:00:20]}  Bxf8 {[%clk 0:00:49]} 29. Nf4 {[%clk 0:00:18]}  Qd2 {[%clk 0:00:46]} 30. Qf1 {[%clk 0:00:16]}  Bh6 {[%clk 0:00:31]} 31. Rd1 {[%clk 0:00:12]}  Qa5 {[%clk 0:00:27]} 32. Nd5 {[%clk 0:00:11]}  Qd8 {[%clk 0:00:23]} 33. Bh3 {[%clk 0:00:08]}  Ng4 {[%clk 0:00:22]} 34. Bxg4 {[%clk 0:00:08]}  hxg4 {[%clk 0:00:23]} 35. Ne3 {[%clk 0:00:07]}  Qd7 {[%clk 0:00:22]} 36. Rb1 {[%clk 0:00:05]}  Bg7 {[%clk 0:00:17]} 37. Rxb2 {[%clk 0:00:05]}  axb2 {[%clk 0:00:18]} 38. Qb1 {[%clk 0:00:05]}  Bd4 {[%clk 0:00:17]} 39. Nd5 {[%clk 0:00:05]}  Qb7 {[%clk 0:00:13]} 40. Bf2 {[%clk 0:00:05]}  Bxf2 {[%clk 0:00:13]} 41. e5 {[%clk 0:00:05]}  Qxd5+ {[%clk 0:00:12]} 42. Kh2 {[%clk 0:00:05]}  Bd4 {[%clk 0:00:11]} 43. exd6 {[%clk 0:00:05]}  Qf3 {[%clk 0:00:11]} 44. Qc2 {[%clk 0:00:04]}  b1=Q {[%clk 0:00:09]} 45. Qxb1 {[%clk 0:00:04]}  Qf2+ {[%clk 0:00:09]} 46. Kh1 {[%clk 0:00:05]}  exd6 {[%clk 0:00:08]} 47. Qb8+ {[%clk 0:00:04]}  Kg7 {[%clk 0:00:08]} 48. Qc7+ {[%clk 0:00:04]}  Qf7 {[%clk 0:00:08]} 49. Qxd6 {[%clk 0:00:04]}  Bb7+ {[%clk 0:00:09]} 50. Kh2 {[%clk 0:00:02]}  Qf2# {[%clk 0:00:09]} 0-1


[Site "https://www.chess.com"]

[Event "Titled Tuesday Blitz November 07 Late 2023"]
[White "Toropov, Pavel"]
[Black "Tarnowska, Aleksandra"]
[WhiteFideId "24129178"]
[BlackFideId "1180967"]
[WhiteElo "2562"]
[BlackElo "2159"]
[Result "1-0"]
[Round "1"]
[TimeControl "180+1"]
[Date "2023.11.07"]
[WhiteClock "0:00:19"]
[BlackClock "0:00:11"]
[Board "153"]

1. e4 {[%clk 0:02:54]}  c5 {[%clk 0:02:56]} 2. Nf3 {[%clk 0:02:51]}  e6 {[%clk 0:02:55]} 3. d4 {[%clk 0:02:51]}  cxd4 {[%clk 0:02:55]} 4. Nxd4 {[%clk 0:02:51]}  a6 {[%clk 0:02:56]} 5. Nc3 {[%clk 0:02:50]}  Qc7 {[%clk 0:02:56]} 6. Qf3 {[%clk 0:02:50]}  Nf6 {[%clk 0:02:51]} 7. Qg3 {[%clk 0:02:49]}  Qxg3 {[%clk 0:02:44]} 8. hxg3 {[%clk 0:02:50]}  Nc6 {[%clk 0:02:36]} 9. Nxc6 {[%clk 0:02:45]}  dxc6 {[%clk 0:02:32]} 10. e5 {[%clk 0:02:43]}  Nd5 {[%clk 0:02:32]} 11. Ne4 {[%clk 0:02:44]}  b5 {[%clk 0:02:19]} 12. Bd2 {[%clk 0:02:31]}  Bb7 {[%clk 0:02:16]} 13. c4 {[%clk 0:02:30]}  Nb4 {[%clk 0:01:59]} 14. Kd1 {[%clk 0:02:16]}  c5 {[%clk 0:01:52]} 15. Nd6+ {[%clk 0:02:11]}  Bxd6 {[%clk 0:01:50]} 16. exd6 {[%clk 0:02:12]}  bxc4 {[%clk 0:01:45]} 17. Bxc4 {[%clk 0:02:04]}  Bxg2 {[%clk 0:01:44]} 18. Rh4 {[%clk 0:02:00]}  Bf3+ {[%clk 0:01:43]} 19. Kc1 {[%clk 0:01:59]}  Kd7 {[%clk 0:01:33]} 20. Bc3 {[%clk 0:01:17]}  f6 {[%clk 0:01:20]} 21. b3 {[%clk 0:01:03]}  Kxd6 {[%clk 0:01:10]} 22. Kb2 {[%clk 0:01:02]}  e5 {[%clk 0:01:04]} 23. Re1 {[%clk 0:00:47]}  h6 {[%clk 0:00:43]} 24. Re3 {[%clk 0:00:45]}  Bc6 {[%clk 0:00:29]} 25. a3 {[%clk 0:00:43]}  Nd5 {[%clk 0:00:28]} 26. Rd3 {[%clk 0:00:43]}  Ke6 {[%clk 0:00:26]} 27. f4 {[%clk 0:00:35]}  e4 {[%clk 0:00:24]} 28. f5+ {[%clk 0:00:30]}  Kxf5 {[%clk 0:00:20]} 29. Bxd5 {[%clk 0:00:22]}  exd3 {[%clk 0:00:17]} 30. Bxc6 {[%clk 0:00:22]}  Rad8 {[%clk 0:00:14]} 31. Be4+ {[%clk 0:00:21]}  Kg5 {[%clk 0:00:11]} 32. Bd2# {[%clk 0:00:19]} 1-0


[Site "https://www.chess.com"]

[Event "Titled Tuesday Blitz November 07 Late 2023"]
[White "Smirnov, Timofey"]
[Black "Gontcharov, Vladislav"]
[WhiteFideId "24176427"]
[BlackFideId "4123492"]
[WhiteElo "2152"]
[BlackElo "2555"]
[Result "0-1"]
[Round "1"]
[TimeControl "180+1"]
[Date "2023.11.07"]
[WhiteClock "0:00:00"]
[BlackClock "0:00:39"]
[Board "154"]

1. d4 {[%clk 0:02:27]}  Nf6 {[%clk 0:02:48]} 2. Bf4 {[%clk 0:02:26]}  e6 {[%clk 0:02:47]} 3. e3 {[%clk 0:02:25]}  b6 {[%clk 0:02:47]} 4. Nf3 {[%clk 0:02:23]}  Bb7 {[%clk 0:02:46]} 5. Be2 {[%clk 0:02:23]}  Nh5 {[%clk 0:02:41]} 6. Bg3 {[%clk 0:02:22]}  Nxg3 {[%clk 0:02:39]} 7. hxg3 {[%clk 0:02:23]}  g6 {[%clk 0:02:39]} 8. c4 {[%clk 0:02:19]}  Bg7 {[%clk 0:02:39]} 9. Nc3 {[%clk 0:02:18]}  d6 {[%clk 0:02:39]} 10. a4 {[%clk 0:02:18]}  a6 {[%clk 0:02:37]} 11. O-O {[%clk 0:02:14]}  O-O {[%clk 0:02:36]} 12. Qc2 {[%clk 0:02:13]}  Nd7 {[%clk 0:02:35]} 13. b4 {[%clk 0:02:11]}  a5 {[%clk 0:02:32]} 14. b5 {[%clk 0:02:03]}  Qe7 {[%clk 0:02:28]} 15. Rad1 {[%clk 0:01:51]}  f5 {[%clk 0:02:27]} 16. Nd2 {[%clk 0:01:37]}  g5 {[%clk 0:02:14]} 17. Bf3 {[%clk 0:01:36]}  Bxf3 {[%clk 0:02:11]} 18. Nxf3 {[%clk 0:01:37]}  g4 {[%clk 0:02:11]} 19. Nh4 {[%clk 0:01:32]}  Bf6 {[%clk 0:02:11]} 20. Ne2 {[%clk 0:01:26]}  Bxh4 {[%clk 0:02:11]} 21. gxh4 {[%clk 0:01:27]}  Qxh4 {[%clk 0:02:11]} 22. Nf4 {[%clk 0:01:27]}  g3 {[%clk 0:02:00]} 23. fxg3 {[%clk 0:01:21]}  Qxg3 {[%clk 0:02:00]} 24. Rf3 {[%clk 0:01:18]}  Qh4 {[%clk 0:01:54]} 25. Nxe6 {[%clk 0:01:03]}  Rf6 {[%clk 0:01:51]} 26. Nxc7 {[%clk 0:00:56]}  Raf8 {[%clk 0:01:50]} 27. Nd5 {[%clk 0:00:55]}  Rg6 {[%clk 0:01:50]} 28. Rdf1 {[%clk 0:00:24]}  Kh8 {[%clk 0:01:41]} 29. Rxf5 {[%clk 0:00:20]}  Rfg8 {[%clk 0:01:41]} 30. R1f2 {[%clk 0:00:18]}  h6 {[%clk 0:01:13]} 31. R5f4 {[%clk 0:00:19]}  Qg5 {[%clk 0:01:11]} 32. Rf5 {[%clk 0:00:14]}  Qh4 {[%clk 0:01:11]} 33. R5f4 {[%clk 0:00:14]}  Qg5 {[%clk 0:01:11]} 34. Kf1 {[%clk 0:00:14]}  R8g7 {[%clk 0:01:06]} 35. Rf8+ {[%clk 0:00:09]}  Kh7 {[%clk 0:01:06]} 36. R8f5 {[%clk 0:00:07]}  Qh4 {[%clk 0:01:02]} 37. Nf6+ {[%clk 0:00:06]}  Nxf6 {[%clk 0:01:03]} 38. Rxf6 {[%clk 0:00:07]}  Qh1+ {[%clk 0:00:59]} 39. Ke2 {[%clk 0:00:07]}  Qh5+ {[%clk 0:00:57]} 40. Kf1 {[%clk 0:00:06]}  Qh1+ {[%clk 0:00:56]} 41. Ke2 {[%clk 0:00:06]}  Qh5+ {[%clk 0:00:56]} 42. Kd2 {[%clk 0:00:06]}  Kh8 {[%clk 0:00:56]} 43. Rxg6 {[%clk 0:00:06]}  Rxg6 {[%clk 0:00:55]} 44. Rf8+ {[%clk 0:00:05]}  Kg7 {[%clk 0:00:55]} 45. Rf2 {[%clk 0:00:04]}  Rg3 {[%clk 0:00:50]} 46. Kc1 {[%clk 0:00:03]}  Qg5 {[%clk 0:00:49]} 47. Kb2 {[%clk 0:00:02]}  Qxe3 {[%clk 0:00:47]} 48. Qf5 {[%clk 0:00:02]}  Qa3+ {[%clk 0:00:40]} 49. Kb1 {[%clk 0:00:02]}  Rb3+ {[%clk 0:00:39]} 50. Kc2 {[%clk 0:00:02]}  Rb2+ {[%clk 0:00:39]} 51. Kc1 {[%clk 0:00:00]}  Qa1+ {[%clk 0:00:39]} 0-1


[Site "https://www.chess.com"]

[Event "Titled Tuesday Blitz November 07 Late 2023"]
[White "Toncheva, Nadya"]
[Black "VitaliyChayka"]
[WhiteFideId "2924056"]
[WhiteElo "2554"]
[BlackElo "2135"]
[Result "1-0"]
[Round "1"]
[TimeControl "180+1"]
[Date "2023.11.07"]
[WhiteClock "0:00:51"]
[BlackClock "0:00:00"]
[Board "155"]

1. d4 {[%clk 0:03:00]}  g6 {[%clk 0:02:58]} 2. c4 {[%clk 0:02:59]}  c5 {[%clk 0:02:58]} 3. d5 {[%clk 0:02:59]}  e5 {[%clk 0:02:57]} 4. Nc3 {[%clk 0:02:59]}  d6 {[%clk 0:02:57]} 5. e4 {[%clk 0:02:59]}  h5 {[%clk 0:02:57]} 6. Bd3 {[%clk 0:02:56]}  a6 {[%clk 0:02:55]} 7. Nge2 {[%clk 0:02:55]}  Bh6 {[%clk 0:02:52]} 8. O-O {[%clk 0:02:54]}  Nd7 {[%clk 0:02:50]} 9. a3 {[%clk 0:02:40]}  Qe7 {[%clk 0:02:34]} 10. b4 {[%clk 0:02:32]}  Kf8 {[%clk 0:02:32]} 11. Bxh6+ {[%clk 0:02:24]}  Nxh6 {[%clk 0:02:31]} 12. f3 {[%clk 0:02:24]}  Kg7 {[%clk 0:02:23]} 13. Qd2 {[%clk 0:02:15]}  h4 {[%clk 0:02:14]} 14. Rab1 {[%clk 0:02:09]}  f6 {[%clk 0:01:57]} 15. Bc2 {[%clk 0:02:08]}  Nf7 {[%clk 0:01:36]} 16. Nc1 {[%clk 0:02:06]}  b6 {[%clk 0:01:32]} 17. Nd3 {[%clk 0:02:05]}  Rh5 {[%clk 0:01:01]} 18. Ba4 {[%clk 0:02:03]}  Bb7 {[%clk 0:00:56]} 19. Bxd7 {[%clk 0:01:55]}  Qxd7 {[%clk 0:00:55]} 20. bxc5 {[%clk 0:01:52]}  bxc5 {[%clk 0:00:49]} 21. Qc2 {[%clk 0:01:49]}  Rhh8 {[%clk 0:00:44]} 22. Qa4 {[%clk 0:01:47]}  Qc7 {[%clk 0:00:40]} 23. Rb2 {[%clk 0:01:43]}  Ra7 {[%clk 0:00:31]} 24. Rfb1 {[%clk 0:01:43]}  Ba8 {[%clk 0:00:30]} 25. Rb6 {[%clk 0:01:41]}  Bb7 {[%clk 0:00:23]} 26. Qb3 {[%clk 0:01:39]}  Ba8 {[%clk 0:00:19]} 27. a4 {[%clk 0:01:36]}  g5 {[%clk 0:00:16]} 28. a5 {[%clk 0:01:35]}  Nh6 {[%clk 0:00:13]} 29. Na4 {[%clk 0:01:15]}  g4 {[%clk 0:00:11]} 30. f4 {[%clk 0:00:58]}  Nf7 {[%clk 0:00:04]} 31. Qd1 {[%clk 0:00:52]}  g3 {[%clk 0:00:00]} 32. Qg4+ {[%clk 0:00:51]} 1-0


[Site "https://www.chess.com"]

[Event "Titled Tuesday Blitz November 07 Late 2023"]
[White "Fernandez Sanchez, Mario Andres"]
[Black "Dragomirescu, Robin-Alexandru"]
[WhiteFideId "6501621"]
[BlackFideId "1213849"]
[WhiteElo "2115"]
[BlackElo "2541"]
[Result "0-1"]
[Round "1"]
[TimeControl "180+1"]
[Date "2023.11.07"]
[WhiteClock "0:00:08"]
[BlackClock "0:00:15"]
[Board "160"]

1. d4 {[%clk 0:03:00]}  Nf6 {[%clk 0:02:59]} 2. Bf4 {[%clk 0:03:00]}  g6 {[%clk 0:02:59]} 3. Nc3 {[%clk 0:02:56]}  d5 {[%clk 0:02:59]} 4. e3 {[%clk 0:02:55]}  Bg7 {[%clk 0:02:59]} 5. h4 {[%clk 0:02:55]}  Bf5 {[%clk 0:02:51]} 6. h5 {[%clk 0:02:37]}  gxh5 {[%clk 0:02:44]} 7. Rxh5 {[%clk 0:02:38]}  Nxh5 {[%clk 0:02:42]} 8. Qxh5 {[%clk 0:02:39]}  e6 {[%clk 0:02:36]} 9. O-O-O {[%clk 0:02:16]}  a6 {[%clk 0:02:23]} 10. Nf3 {[%clk 0:02:12]}  c5 {[%clk 0:02:18]} 11. Ne5 {[%clk 0:01:56]}  Bg6 {[%clk 0:02:12]} 12. Qh2 {[%clk 0:01:48]}  Nc6 {[%clk 0:02:04]} 13. dxc5 {[%clk 0:01:42]}  Qa5 {[%clk 0:01:56]} 14. Nxc6 {[%clk 0:01:39]}  bxc6 {[%clk 0:01:53]} 15. Be5 {[%clk 0:01:39]}  O-O {[%clk 0:01:30]} 16. Bxg7 {[%clk 0:01:25]}  Kxg7 {[%clk 0:01:30]} 17. Bd3 {[%clk 0:00:55]}  f6 {[%clk 0:00:41]} 18. Rh1 {[%clk 0:00:48]}  Rh8 {[%clk 0:00:41]} 19. Qd6 {[%clk 0:00:45]}  Rab8 {[%clk 0:00:31]} 20. Qxe6 {[%clk 0:00:40]}  Rb7 {[%clk 0:00:22]} 21. Qxc6 {[%clk 0:00:32]}  Qb4 {[%clk 0:00:21]} 22. Bxg6 {[%clk 0:00:27]}  Qxb2+ {[%clk 0:00:19]} 23. Kd2 {[%clk 0:00:27]}  hxg6 {[%clk 0:00:19]} 24. Rxh8 {[%clk 0:00:27]}  Kxh8 {[%clk 0:00:18]} 25. Qxf6+ {[%clk 0:00:27]}  Kh7 {[%clk 0:00:17]} 26. c6 {[%clk 0:00:27]}  Rc7 {[%clk 0:00:15]} 27. Qh4+ {[%clk 0:00:27]}  Kg7 {[%clk 0:00:14]} 28. Qd4+ {[%clk 0:00:27]}  Kh7 {[%clk 0:00:14]} 29. Qh4+ {[%clk 0:00:27]}  Kg7 {[%clk 0:00:14]} 30. Qd4+ {[%clk 0:00:25]}  Kh7 {[%clk 0:00:14]} 31. Qxd5 {[%clk 0:00:20]}  Qb6 {[%clk 0:00:13]} 32. Qf3 {[%clk 0:00:14]}  Qxc6 {[%clk 0:00:13]} 33. Qh3+ {[%clk 0:00:14]}  Kg7 {[%clk 0:00:13]} 34. e4 {[%clk 0:00:14]}  Rd7+ {[%clk 0:00:13]} 35. Nd5 {[%clk 0:00:13]}  Qd6 {[%clk 0:00:13]} 36. c4 {[%clk 0:00:13]}  Re7 {[%clk 0:00:13]} 37. f3 {[%clk 0:00:12]}  Qa3 {[%clk 0:00:12]} 38. Ke2 {[%clk 0:00:12]}  Qxa2+ {[%clk 0:00:12]} 39. Ke3 {[%clk 0:00:12]}  Rb7 {[%clk 0:00:11]} 40. Qe6 {[%clk 0:00:12]}  Qxc4 {[%clk 0:00:11]} 41. Qe5+ {[%clk 0:00:11]}  Kh6 {[%clk 0:00:10]} 42. Qh2+ {[%clk 0:00:11]}  Kg7 {[%clk 0:00:10]} 43. Qe5+ {[%clk 0:00:10]}  Kf7 {[%clk 0:00:10]} 44. Qf6+ {[%clk 0:00:09]}  Ke8 {[%clk 0:00:11]} 45. Qxg6+ {[%clk 0:00:09]}  Kd7 {[%clk 0:00:11]} 46. Qf7+ {[%clk 0:00:09]}  Kc6 {[%clk 0:00:11]} 47. Ne7+ {[%clk 0:00:09]}  Kb5 {[%clk 0:00:11]} 48. Qxc4+ {[%clk 0:00:08]}  Kxc4 {[%clk 0:00:12]} 49. Nd5 {[%clk 0:00:07]}  a5 {[%clk 0:00:13]} 50. f4 {[%clk 0:00:07]}  a4 {[%clk 0:00:13]} 51. Kd2 {[%clk 0:00:06]}  a3 {[%clk 0:00:13]} 52. Ne3+ {[%clk 0:00:07]}  Kb3 {[%clk 0:00:13]} 53. Nc2 {[%clk 0:00:07]}  Rd7+ {[%clk 0:00:13]} 54. Kc1 {[%clk 0:00:07]}  Rc7 {[%clk 0:00:13]} 55. Kb1 {[%clk 0:00:07]}  Rxc2 {[%clk 0:00:14]} 56. e5 {[%clk 0:00:08]}  a2+ {[%clk 0:00:14]} 57. Ka1 {[%clk 0:00:08]}  Rc1# {[%clk 0:00:15]} 0-1


[Site "https://www.chess.com"]